{"text_format":"1","workbook":"xlsx","n_sheets":9,"sheets":[" LETNO POROČILO - VINO","OSNOVNO POROČILO","NAMIZNO VINO","DEŽELNO VINO","KAKOVOSTNO VINO","VRHUNSKO VINO","SGP tretje države","GIBANJE PRODAJNIH CEN SGP ","POREKLO EU IN TRETJE DRŽAVE"],"not_rendered":{"charts":7,"images":0,"macros":0,"external_links":0,"defined_names":10,"comments":0,"pivot_tables":0},"unopened":[],"bounds":{"document_bytes":16777216,"sheet_cells":100000,"rows_first":2000,"rows_last":500,"rows_between":2000,"halvings":0,"cell_chars":16384,"cell_head_chars":4096},"cells_cut":0,"cells_raw":0,"read":"whole","date_system":"1900"}

{"sheet":" LETNO POROČILO - VINO","index":0,"n_rows":17,"n_cols":12,"rows_kept":17,"cut":false,"hidden":false,"merged":[]}
["REPUBLIKA SLOVENIJA"]
["MINISTRSTVO ZA KMETIJSTVO, GOZDARSTVO IN PREHRANO",null,null,null,null," LETNO TRŽNO POROČILO VINO - 2020"]
["Agencija Republike Slovenije za"]
["kmetijske trge in razvoj podeželja"]
["Sektor za kmetijske trge"]
["Dunajska cesta 160, 1000 Ljubljana",null,null,null,"Reprezentativni trg so pridelovalci, ki pridelajo nad 500.000 l vina letno in prejemniki podpore iz III. poglavja in podpore "]
[null,null,null,null,"iz 11. člena Uredbe o ureditvi trga z vinom, ki morajo agenciji prijaviti cene in prodane količine vina, ne glede na letno pridelano količino.",null,null,null,null,null,null," "]
["T: 01 580 77 92"]
["E: aktrp@gov.si"]
["www.arsktrp.gov.si"]
[null,null,null,null," Pravilnik o registru pridelovalcev grozdja in vina (Ur. list RS, št. 16/07, 62/09) z dne 23.02.2007 in Uredba o ureditvi trga z vinom (Ur. list RS, št. 69/08, 77/08, 27/09, 29/10, 35/11, 6/12, 24/13, 66/2014)"]
[]
[null,null,null,null,"Legenda:"]
["Številka: 3305-14/2021/151",null,null,null,"SGP – slovensko geografsko poreklo"]
[null,null,null,null,"EU poreklo – vino brez označbe porekla/geografske označbe s poreklom  iz Evropske unije"]
[null,null,null,null,"SGP - tretje države – vino slovenskega geografskega porekla prodanega v tretje države"]
[null,null,null,null,"N.P. – ni prodaje"]

{"sheet":"OSNOVNO POROČILO","index":1,"n_rows":48,"n_cols":7,"rows_kept":48,"cut":false,"hidden":false,"merged":[]}
[]
[null,"Tabela 1: Povprečne ponderirane letne cene in količine za vino, prodano v  Sloveniji in EU v letu 2020"]
[]
[null,"Poreklo","Kakovost vina","Barva","Skupina trgov","Povprečna cena (EUR/100 l)","Količina (l)"]
[null,null,"namizno","belo","RS",87.149921270757744,454469]
[null,null,"namizno","belo","EU",1054.8705212848727,8997]
[null,null,"namizno","rdeče","RS",94.946108939770355,189591]
[null,null,"namizno","rdeče","EU",46.577606763265926,151761]
[null,null,"deželno","belo","RS",175.46535838379532,675756]
[null,null,"deželno","belo","EU",30.660829082324184,3652074]
[null,null,"deželno","rdeče","RS",109.03079131328738,806381]
[null,"SGP","deželno","rdeče","EU",25.306786159269254,610777]
[null,null,"kakovostno","belo","RS",256.54102308548573,8334934]
[null,null,"kakovostno","belo","EU",283.90619994057982,1406928]
[null,null,"kakovostno","rdeče","RS",251.80003168685869,3290323]
[null,null,"kakovostno","rdeče","EU",258.01464902031069,214813]
[null,null,"vrhunsko","belo","RS",557.96716208168448,936972]
[null,null,"vrhunsko","belo","EU",430.5016674156268,173574]
[null,null,"vrhunsko","rdeče","RS",535.54489720815138,644555]
[null,null,"vrhunsko","rdeče","EU",304.52396301517541,120590]
[null,"EU poreklo","brez označbe porekla",null,null,275.81,56747]
[null,"Poreklo iz tretjih držav","brez označbe porekla",null,null,252.29661821213466,187117]
[null,null,null,null,null,"KOLIČINA SKUPAJ",{"$f":"SUM(G5:G22)","v":21916359}]
[]
[null,"Tabela 2: Povprečne prodajne cene vina SGP in količine – prodano v tretje države v letu 2020"]
[]
[null,"Poreklo","Kakovost","Barva","Povprečna cena (EUR/100 l)","Količina (l)"]
[null,null,"namizno","belo",1144.3844830849303,8454]
[null,null,"namizno","rdeče",973.68387275242037,2169]
[null,null,"deželno","belo",494.72272290443141,16857]
[null,"SGP – tretje države","deželno","rdeče",272.61244755244752,4290]
[null,null,"kakovostno","belo",308.61335480351192,652533]
[null,null,"kakovostno","rdeče",406.32572115804646,183136]
[null,null,"vrhunsko","belo",548.33733503987389,50785]
[null,null,"vrhunsko","rdeče",553.06164486369437,101133]
[null,null,null,null,"KOLIČINA SKUPAJ",{"$f":"SUM(F28:F35)","v":1019357}]
[]
[null,"Tabela 3: Primerjava ponderirane letne cene in količine za vino slovenskega geografskega porekla glede na kakovost vina v letih od 2016 do 2020  (prodano v Sloveniji in EU)"]
[]
[null,null,2016,2017,2018,2019,2020]
[null,"Vino–namizno (EUR/100 l)",120.31,124.13,213.1,148.79,92.154001985542081]
[null,"Vino–deželno (EUR/100 l)",143.69999999999999,126.14,135.69,134.38999999999999,58.124498587290347]
[null,"Vino–kakovostno (EUR/100 l)",241.35,247.45,263.85000000000002,294.54000000000002,258.2937216598055]
[null,"Vino–vrhunsko (EUR/100 l)",605.91999999999996,543.54999999999995,547.23,534.25,522.17246344413877]
[null,"Skupna količina v litrih",21621734,21867490,19956450,20442265,{"$f":"(G23-G22-G21)","v":21672495}]
[]
[]
[null,"Grafikon 1: Primerjava ponderirane letne cene za vino glede na kakovost vina v Sloveniji v letih od 2016 do 2020"]

{"sheet":"NAMIZNO VINO","index":2,"n_rows":46,"n_cols":6,"rows_kept":46,"cut":false,"hidden":false,"merged":[]}
[]
[null,"Tabela 4: Prodajne cene namiznega vina v EUR/100 l v letu 2020"]
[]
[]
[null,"NAMIZNO VINO","I. trimesečje 2020","II. Trimesečje 2020","III. Trimesečje 2020","IV. Trimesečje 2020"]
[null,"cena belo RS",89.68,77.540000000000006,83.45,111.99]
[null,"cena belo EU",979.89,796.22,949.55,1393.1]
[null,"cena rdeče RS",108.96,83.26,104.94,92.78]
[null,"cena rdeče EU",40.020000000000003,39.32,50.46,1526.67]
[null,"povprečna cena",{"$f":"(C6*C11+C8*C13+C7*C12+C9*C14)/C15","v":89.112408255375442},{"$f":"(D6*D11+D8*D13+D7*D12+D9*D14)/D15","v":75.039425315987813},{"$f":"(E6*E11+E8*E13+E7*E12+E9*E14)/E15","v":91.633051981318133},132.4801191737931]
[null,"količina belo RS",106468,134706,149724,63571]
[null,"količina belo EU",1825,1309,3399,2464]
[null,"količina rdeče RS",39478,62617,30266,57230]
[null,"količina rdeče EU",50306,50270,50849,336]
[null,"količina skupaj",{"$f":"SUM(C11:C14)","v":198077},{"$f":"SUM(D11:D14)","v":248902},{"$f":"SUM(E11:E14)","v":234238},123601]
[]
[]
[null,"Grafikon 1: Gibanje prodajnih cen in prodanih količin namiznega belega vina v letu 2020, prodanega v RS oziroma v EU"]
[]
[]
[]
[]
[]
[]
[]
[]
[]
[]
[]
[]
[]
[]
[]
[]
[]
[]
[]
[]
[]
[]
[]
[]
[]
[]
[]
[null,"Grafikon 2: Gibanje prodajnih cen in prodanih količin namiznega rdečega vina v letu 2020, prodanega v RS oziroma v EU"]

{"sheet":"DEŽELNO VINO","index":3,"n_rows":17,"n_cols":6,"rows_kept":17,"cut":false,"hidden":false,"merged":[]}
[]
[null,"Tabela 5: Prodajne cene deželnega vina v EUR/100 l  v letu 2020"]
[]
[null,"DEŽELNO VINO","I. trimesečje 2020","II. Trimesečje 2020","III. Trimesečje 2020","IV. Trimesečje 2020"]
[null,"cena belo RS",196.24,168.54,181.08,164.94]
[null,"cena belo EU",43.45,36.71,10.16,555.41]
[null,"cena rdeče RS",122.44,141,77.05,121.06]
[null,"cena rdeče EU",348.33,28.54,8.35,56.12]
[null,"povprečna cena",{"$f":"(C5*C10+C6*C11+C7*C12+C8*C13)/C14","v":60.620393645469562},61.257617954480487,37.526080544505952,145.00512197623732]
[null,"količina belo RS",105725,179927,195517,194587]
[null,"količina belo EU",1629543,703488,1315475,3568]
[null,"količina rdeče RS",220457,159471,299573,126880]
[null,"količina rdeče EU",45,450847,133950,25935]
[null,"količina skupaj",{"$f":"SUM(C10:C13)","v":1955770},{"$f":"SUM(D10:D13)","v":1493733},{"$f":"SUM(E10:E13)","v":1944515},350970]
[null,null,null,null,"*opomba: v 3.trimesečju je v poročilo vključeno vino, ki je bilo oddano v destilacijo"]
[]
[null,"Grafikon 3: Gibanje prodajnih cen in prodanih količin deželnega vina v letu 2020, prodanega v RS oziroma v EU"]

{"sheet":"KAKOVOSTNO VINO","index":4,"n_rows":17,"n_cols":6,"rows_kept":17,"cut":false,"hidden":false,"merged":[]}
[]
[null,"Tabela 6: Primerjava prodajnih cen kakovostnega vina v EUR/100 l v letu 2020"]
[]
[null,"KAKOVOSTNO VINO","I. trimesečje 2020","II. Trimesečje 2020","III. Trimesečje 2020","IV. Trimesečje 2020"]
[null,"cena belo RS",219.93,231.38,237.24,314.02999999999997]
[null,"cena belo EU",299.01,288.74,259.98,304.44]
[null,"cena rdeče RS",244.42,240.36,241.04,280.97000000000003]
[null,"cena rdeče EU",359.46,482.15,125.87,507.89]
[null,"povprečna cena",{"$f":"(C5*C10+C6*C11+C7*C12+C8*C13)/C14","v":238.2165484032227},243.23747538479174,237.44929785553708,306.93413657857224]
[null,"količina belo RS",1444526,1819476,2511489,2559443]
[null,"količina belo EU",289873,350000,490791,276264]
[null,"količina rdeče RS",720423,797856,932788,839256]
[null,"količina rdeče EU",35663,33252,124410,21488]
[null,"količina skupaj",{"$f":"SUM(C10:C13)","v":2490485},3000584,4059478,3696451]
[]
[]
[null,"Grafikon 4: Gibanje prodajnih cen in prodanih količin kakovostnega vina v letu 2020, prodanega v RS oziroma v EU"]

{"sheet":"VRHUNSKO VINO","index":5,"n_rows":17,"n_cols":6,"rows_kept":17,"cut":false,"hidden":false,"merged":[]}
[]
[null,"Tabela 7: Primerjava prodajnih cen kakovostnega vina v EUR/100 l v letih 2020"]
[]
[null,"VRHUNSKO VINO","I. trimesečje 2020","II. Trimesečje 2020","III. Trimesečje 2020","IV. Trimesečje 2020"]
[null,"cena belo RS",557.26,515.84,548.84,582.09]
[null,"cena belo EU",368.74,419.74,451.59,470.13]
[null,"cena rdeče RS",557.69000000000005,510.69,521.88,549.28]
[null,"cena rdeče EU",427.24,90.54,508.24,584.84]
[null,"povprečna cena ",{"$f":"(C5*C10+C6*C11+C7*C12+C8*C13)/C14","v":524.26956411376159},437.9974273119538,529.557784118977,563.43930389366801]
[null,"količina belo RS",123168,155962,277043,380799]
[null,"količina belo EU",39245,40451,46444,47434]
[null,"količina rdeče RS",112850,129732,175027,226946]
[null,"količina rdeče EU",17841,59957,17687,25105]
[null,"količina skupaj",{"$f":"SUM(C10:C13)","v":293104},386102,516201,680284]
[]
[]
[null,"Grafikon 5: Gibanje prodajnih cen in prodanih količin kakovostnega vina za leto 2020"]

{"sheet":"SGP tretje države","index":6,"n_rows":87,"n_cols":8,"rows_kept":87,"cut":false,"hidden":false,"merged":[]}
[]
[null,"Tabela 8: Poročilo o prodajnih cenah vina SGP po posamezni državi - tretje države v letu 2020"]
[]
[]
[null,"Poreklo","Kakovost vina","Barva","Skupina trgov","Naziv države","Količina v litrih","Ponderirana cena EUR/liter"]
[null,"Slovensko geografsko poreklo","kakovostno","rdeče","tretje države","Albanija",400,1.5]
[null,"Slovensko geografsko poreklo","kakovostno","belo","tretje države","Albanija",367,2.9409324250681199]
[null,"Slovensko geografsko poreklo","vrhunsko","rdeče","tretje države","Albanija",1737,3.8853507772020723]
[null,"Slovensko geografsko poreklo","vrhunsko","belo","tretje države","Albanija",1710,4.437185263157895]
[null,"Slovensko geografsko poreklo","kakovostno","belo","tretje države","Avstralija",1913,6.92]
[null,"Slovensko geografsko poreklo","kakovostno","rdeče","tretje države","Avstralija",135,24.93]
[null,"Slovensko geografsko poreklo","kakovostno","belo","tretje države","Belorusija",293,8.4461999999999993]
[null,"Slovensko geografsko poreklo","kakovostno","rdeče","tretje države","Belorusija",68,6.6]
[null,"Slovensko geografsko poreklo","kakovostno","belo","tretje države","Bosna in Hercegovina",58158,1.6432544790000001]
[null,"Slovensko geografsko poreklo","kakovostno","rdeče","tretje države","Bosna in Hercegovina",11917,4.4994491482755725]
[null,"Slovensko geografsko poreklo","vrhunsko","belo","tretje države","Bosna in Hercegovina",5135,3.8201589289191822]
[null,"Slovensko geografsko poreklo","vrhunsko","rdeče","tretje države","Bosna in Hercegovina",1265,4.2268178656126487]
[null,"Slovensko geografsko poreklo","kakovostno","belo","tretje države","Brazilija",13626,2.0717842800528401]
[null,"Slovensko geografsko poreklo","kakovostno","rdeče","tretje države","Brazilija",7668,3.8023335680751176]
[null,"Slovensko geografsko poreklo","vrhunsko","belo","tretje države","Brazilija",1143,2.0851999999999999]
[null,"Slovensko geografsko poreklo","kakovostno","belo","tretje države","Črna gora",23247,1.7978318234610917]
[null,"Slovensko geografsko poreklo","kakovostno","rdeče","tretje države","Črna gora",112,8.2667000000000002]
[null,"Slovensko geografsko poreklo","vrhunsko","belo","tretje države","Črna gora",405,5.64]
[null,"Slovensko geografsko poreklo","kakovostno","rdeče","tretje države","Hong Kong",31,18.016300000000001]
[null,"Slovensko geografsko poreklo","kakovostno","belo","tretje države","Hong Kong",356,11.265792134831461]
[null,"Slovensko geografsko poreklo","vrhunsko","rdeče","tretje države","Hong Kong",3240,9.5595999999999997]
[null,"Slovensko geografsko poreklo","vrhunsko","belo","tretje države","Hong Kong",990,6.2100999999999997]
[null,"Slovensko geografsko poreklo","kakovostno","belo","tretje države","Islandija",153,7.5670999999999999]
[null,"Slovensko geografsko poreklo","kakovostno","rdeče","tretje države","Islandija",54,7.7866999999999997]
[null,"Slovensko geografsko poreklo","kakovostno","belo","tretje države","Izrael",5436,4.7775541390728478]
[null,"Slovensko geografsko poreklo","kakovostno","rdeče","tretje države","Izrael",225,7.3333000000000004]
[null,"Slovensko geografsko poreklo","kakovostno","belo","tretje države","Japonska",16201,6.9146941855441018]
[null,"Slovensko geografsko poreklo","kakovostno","rdeče","tretje države","Japonska",29597,3.4099549886812852]
[null,"Slovensko geografsko poreklo","namizno","belo","tretje države","Japonska",2285,10.122174617067834]
[null,"Slovensko geografsko poreklo","namizno","rdeče","tretje države","Japonska",1272,9.3624754716981133]
[null,"Slovensko geografsko poreklo","vrhunsko","rdeče","tretje države","Japonska",3321,4.5878837398373982]
[null,"Slovensko geografsko poreklo","vrhunsko","belo","tretje države","Japonska",3339,5.8680716981132086]
[null,"Slovensko geografsko poreklo","kakovostno","belo","tretje države","Kanada",4649,6.018914132071413]
[null,"Slovensko geografsko poreklo","kakovostno","rdeče","tretje države","Kanada",2345,3.9503120255863542]
[null,"Slovensko geografsko poreklo","namizno","belo","tretje države","Kanada",1365,6.9560395604395593]
[null,"Slovensko geografsko poreklo","namizno","rdeče","tretje države","Kanada",90,6]
[null,"Slovensko geografsko poreklo","vrhunsko","belo","tretje države","Kanada",505,4.9977156435643568]
[null,"Slovensko geografsko poreklo","kakovostno","belo","tretje države","Liechtenstein",1215,1.8]
[null,"Slovensko geografsko poreklo","vrhunsko","belo","tretje države","Liechtenstein",203,18.646541871921183]
[null,"Slovensko geografsko poreklo","kakovostno","belo","tretje države","Ljudska republika Kitajska",5320,8.0539234398496244]
[null,"Slovensko geografsko poreklo","kakovostno","rdeče","tretje države","Ljudska republika Kitajska",18064,6.7836630868024796]
[null,"Slovensko geografsko poreklo","vrhunsko","belo","tretje države","Ljudska republika Kitajska",6168,6.7508985732814528]
[null,"Slovensko geografsko poreklo","vrhunsko","rdeče","tretje države","Ljudska republika Kitajska",73640,5.5696007563824006]
[null,"Slovensko geografsko poreklo","vrhunsko","belo","tretje države","Malezija",4,2.6665999999999999]
[null,"Slovensko geografsko poreklo","vrhunsko","rdeče","tretje države","Malezija",5,2.6665999999999999]
[null,"Slovensko geografsko poreklo","kakovostno","belo","tretje države","Norveška",915,10.624885245901639]
[null,"Slovensko geografsko poreklo","namizno","belo","tretje države","Norveška",1683,14.618978609625669]
[null,"Slovensko geografsko poreklo","vrhunsko","belo","tretje države","Norveška",662,3.726278549848943]
[null,"Slovensko geografsko poreklo","vrhunsko","rdeče","tretje države","Norveška",144,4.0708312500000003]
[null,"Slovensko geografsko poreklo","kakovostno","belo","tretje države","Republika Koreja",4770,18.829258490566041]
[null,"Slovensko geografsko poreklo","kakovostno","rdeče","tretje države","Republika Koreja",270,22.871849999999998]
[null,"Slovensko geografsko poreklo","namizno","belo","tretje države","Republika Koreja",1197,13.313224812030077]
[null,"Slovensko geografsko poreklo","namizno","rdeče","tretje države","Republika Koreja",288,10.666600000000001]
[null,"Slovensko geografsko poreklo","kakovostno","belo","tretje države","Ruska federacija",6900,3.3724304347826091]
[null,"Slovensko geografsko poreklo","kakovostno","rdeče","tretje države","Ruska federacija",252,21.128599999999999]
[null,"Slovensko geografsko poreklo","kakovostno","belo","tretje države","Singapur",41,18.808800000000002]
[null,"Slovensko geografsko poreklo","kakovostno","rdeče","tretje države","Singapur",9,18.808800000000002]
[null,"Slovensko geografsko poreklo","kakovostno","belo","tretje države","Srbija",40220,2.4764664868224764]
[null,"Slovensko geografsko poreklo","kakovostno","rdeče","tretje države","Srbija",832,23.313581850961537]
[null,"Slovensko geografsko poreklo","vrhunsko","belo","tretje države","Srbija",4961,4.6798412819995967]
[null,"Slovensko geografsko poreklo","deželno","belo","tretje države","Švica",18,10.666600000000001]
[null,"Slovensko geografsko poreklo","deželno","rdeče","tretje države","Švica",90,10.666600000000001]
[null,"Slovensko geografsko poreklo","kakovostno","belo","tretje države","Švica",3151,8.2697391939066964]
[null,"Slovensko geografsko poreklo","kakovostno","rdeče","tretje države","Švica",1729,15.897976691729323]
[null,"Slovensko geografsko poreklo","namizno","belo","tretje države","Švica",17,10.666600000000001]
[null,"Slovensko geografsko poreklo","namizno","rdeče","tretje države","Švica",15,10.666600000000001]
[null,"Slovensko geografsko poreklo","vrhunsko","belo","tretje države","Švica",1402,9.0988173323823105]
[null,"Slovensko geografsko poreklo","vrhunsko","rdeče","tretje države","Švica",1244,9.8247696141479093]
[null,"Slovensko geografsko poreklo","kakovostno","belo","tretje države","Ukrajina",6750,3.1706333333333334]
[null,"Slovensko geografsko poreklo","namizno","rdeče","tretje države","Ukrajina",135,10.666600000000001]
[null,"Slovensko geografsko poreklo","namizno","belo","tretje države","Ukrajina",319,18.253]
[null,"Slovensko geografsko poreklo","deželno","rdeče","tretje države","Združene države Amerike",4200,2.5559714285714286]
[null,"Slovensko geografsko poreklo","deželno","belo","tretje države","Združene države Amerike",16839,4.9411135221806513]
[null,"Slovensko geografsko poreklo","kakovostno","belo","tretje države","Združene države Amerike",458852,2.9237722522730638]
[null,"Slovensko geografsko poreklo","kakovostno","rdeče","tretje države","Združene države Amerike",109428,3.3090468646050373]
[null,"Slovensko geografsko poreklo","namizno","belo","tretje države","Združene države Amerike",1341,11.143781208053692]
[null,"Slovensko geografsko poreklo","namizno","rdeče","tretje države","Združene države Amerike",207,10.967565217391305]
[null,"Slovensko geografsko poreklo","vrhunsko","belo","tretje države","Združene države Amerike",24158,5.56588013908436]
[null,"Slovensko geografsko poreklo","vrhunsko","rdeče","tretje države","Združene države Amerike",16537,4.7201869202394624]
[null,"Slovensko geografsko poreklo","namizno","belo","tretje države","Združeno kraljestvo",247,10.666600000000001]
[null,"Slovensko geografsko poreklo","namizno","rdeče","tretje države","Združeno kraljestvo",162,10.666]
[null,null,null,null,null,"KOLIČINA SKUPAJ",{"$f":"SUM(G6:G86)","v":1019357}]

{"sheet":"GIBANJE PRODAJNIH CEN SGP ","index":7,"n_rows":14,"n_cols":7,"rows_kept":14,"cut":false,"hidden":false,"merged":[]}
[]
[null,"Tabela 9: Prodajne cene vina SGP v tretjih državah v EUR/100 l po trimesečjih v letu 2020"]
[]
[null,"Poreklo","kakovost/barva","I. trimesečje 2020","II. Trimesečje 2020","III. Trimesečje 2020","IV. Trimesečje 2020"]
[null,null,"namizno belo",1066.6600000000001,1181.67,1014.6666098807497,1211.2306707317073]
[null,null,"namizno rdeče",null,902.49,1032.6028806584361,1046.3721739130435]
[null,null,"deželno belo",439.99,578.1,607.9,1066.6600000000001]
[null,"SGP","deželno rdeče",256.41000000000003,270.88,245.53,350.90347826086958]
[null,null,"kakovostno belo",335.86,341.55,291.17867329031566,283.44919950513918]
[null,null,"kakovostno rdeče",386.76,349.75,339.17721097615834,486.25339842593314]
[null,null,"vrhunsko belo",680.94,425.44,521.18416458249283,525.55442316620235]
[null,null,"vrhunsko rdeče",511.42,384.61,762.3057710338021,592.01834797386266]
[]
[null,"Grafikon 6: Gibanje prodajnih cen vina SGP v tretjih državah za leto 2020"]

{"sheet":"POREKLO EU IN TRETJE DRŽAVE","index":8,"n_rows":10,"n_cols":6,"rows_kept":10,"cut":false,"hidden":false,"merged":[]}
[]
[null,"Tabela 10: Prodajne cene vina porekla EU in tretjih držav v EUR/100 l po trimesečjih v letu 2020"]
[]
[null,"POREKLO EU IN TRETJE DRŽAVE","I. trimesečje","II. trimesečje","III. trimesečje","IV. trimesečje"]
[null,"cena EU poreklo",null,275.81]
[null,"cena tretje države",246.45,176.74,229.32,275.79000000000002]
[]
[null,"količina EU poreklo",null,56747]
[null,"količina tretje države",36715,15903,37521,96978]
[null,"količina skupaj",{"$f":"SUM(C8:C9)","v":36715},72650,{"$f":"SUM(E8:E9)","v":37521},{"$f":"SUM(F8:F9)","v":96978}]